{"text_format":"1","workbook":"xlsx","n_sheets":4,"sheets":["Eingabe","Auswertung","Grafik","Texte"],"not_rendered":{"charts":4,"images":5,"macros":1,"external_links":0,"defined_names":0,"comments":1,"pivot_tables":0},"unopened":[],"bounds":{"document_bytes":16777216,"sheet_cells":100000,"rows_first":2000,"rows_last":500,"rows_between":2000,"halvings":0,"cell_chars":16384,"cell_head_chars":4096},"cells_cut":0,"cells_raw":0,"read":"whole","date_system":"1900"}

{"sheet":"Eingabe","index":0,"n_rows":19,"n_cols":10,"rows_kept":19,"cut":false,"hidden":false,"merged":[[1,1,1,9],[5,7,6,9],[16,2,16,4],[17,2,17,4],[5,2,6,3],[3,1,3,9],[18,2,18,4],[8,2,8,4],[12,2,12,4],[13,2,13,4],[14,2,14,4],[15,2,15,4],[9,2,9,4],[10,2,10,4],[11,2,11,4]]}
[]
[null,"Portfolioanalyse"]
[]
[null,"Führen Sie eine Portfolioanalyse für bis zu 10 verschiedene Produkte durch. Geben Sie auf jeden Fall, Marktwachstum und Unternehmensumsatz ein. Wenn Sie den Branchenumsatz der Produkte kennen, werden die Marktanteile automatisch berechnet. Andernfalls müssen Sie die Marktanteile direkt über das Eingabemenu angeben. In der Grafik ist die Darstellung der relativen Marktanteile von 0 -25% und für das Marktwachstum von -10 - 25% vorgesehen. (Für höhere Werte müsste eine neue Grafik erstellt werden.)"]
[]
[null,null,"Klassifizierung (Grenzwerte der Portfoliomatrix)",null,"Marktwachstum in %",null,10,"Eingabewerte"]
[null,null,null,null,"Marktanteil in %",null,10]
[]
[null,"Nr.","Produktbezeichnungen",null,null,"Markt- wachstum in %","Unternehmens- umsatz","Umsatz der 5 größten Konkurrenten","Markt-          anteil in %","Direkteingabe Marktanteil      in %"]
[null,1,"Jeans",null,null,16,1400000,9500000,{"$f":"IF(H10=\"\",\"\",G10*100/H10)","v":14.736842105263158}]
[null,2,"Jeansjacke",null,null,-3,320000,5200000,{"$f":"IF(H11=\"\",\"\",G11*100/H11)","v":6.1538461538461542}]
[null,3,"T-Shirt",null,null,15,480000,9300000,5.161290322580645]
[null,4,"Sweatshirt",null,null,6,350000,8200000,4.2682926829268295]
[null,5,"Partykleid",null,null,14,620000,8100000,7.6543209876543212]
[null,6,"Badehose",null,null,2,380000,3400000,11.176470588235293]
[null,7,"Bikini",null,null,14,1200000,6200000,19.35483870967742]
[null,8,"Trainingsanzug",null,null,5,950000,6200000,15.32258064516129]
[null,9,"Polohemd",null,null,2,920000,5100000,18.03921568627451]
[null,10,"Trekkingshirt",null,null,14,650000,5400000,{"$f":"IF(H19=\"\",\"\",G19*100/H19)","v":12.037037037037036}]

{"sheet":"Auswertung","index":1,"n_rows":14,"n_cols":8,"rows_kept":14,"cut":false,"hidden":false,"merged":[[13,1,13,3],[1,1,1,3],[11,7,11,13],[12,7,12,13],[13,7,13,13],[3,7,3,13],[7,7,7,13],[8,7,8,13],[9,7,9,13],[10,7,10,13],[6,1,6,3],[4,7,4,13],[5,7,5,13],[6,7,6,13],[7,1,7,3],[12,1,12,3],[3,1,3,3],[8,1,8,3],[9,1,9,3],[10,1,10,3],[11,1,11,3],[5,1,5,3],[4,1,4,3]]}
[]
[null,"Auswertung "]
[]
[null,{"$f":"Eingabe!C9","v":"Produktbezeichnungen"},null,null,"Markt- wachstum in %","Markt-          anteil     in %","Produkt- charakter","Empfehlungen"]
[null,{"$f":"IF(Eingabe!C10=\"\",\"\",Eingabe!C10)","v":"Jeans"},null,null,{"$f":"IF(B5=\"\",\"\",Eingabe!F10)","v":16},{"$f":"IF(B5=\"\",\"\",IF(Eingabe!H10>0,Eingabe!I10,Eingabe!J10))","v":14.736842105263158},{"$f":"IF(B5=\"\",\"\",IF(AND(E5>=Eingabe!$G$6,F5>=Eingabe!$G$7),\"Star\",IF(AND(E5>=Eingabe!$G$6,F5<Eingabe!$G$7),\"Question Mark\",IF(AND(E5<Eingabe!$G$6,F5>=Eingabe!$G$7),\"Cash Cow\",\"Poor Dog\"))))","v":"Star"},{"$f":"IF(B5=\"\",\"\",IF(G5=\"Question Mark\",Texte!$B$3,IF(Auswertung!G5=\"Star\",Texte!$B$4,IF(Auswertung!G5=\"Poor Dog\",Texte!$B$5,Texte!$B$6))))","v":"Investitionsvolumen beibehalten, Stabilisierungsswerbung, Sortiment halten"}]
[null,{"$f":"IF(Eingabe!C11=\"\",\"\",Eingabe!C11)","v":"Jeansjacke"},null,null,{"$f":"IF(B6=\"\",\"\",Eingabe!F11)","v":-3},{"$f":"IF(B6=\"\",\"\",IF(Eingabe!H11>0,Eingabe!I11,Eingabe!J11))","v":6.1538461538461542},{"$f":"IF(B6=\"\",\"\",IF(AND(E6>=Eingabe!$G$6,F6>=Eingabe!$G$7),\"Star\",IF(AND(E6>=Eingabe!$G$6,F6<Eingabe!$G$7),\"Question Mark\",IF(AND(E6<Eingabe!$G$6,F6>=Eingabe!$G$7),\"Cash Cow\",\"Poor Dog\"))))","v":"Poor Dog"},{"$f":"IF(B6=\"\",\"\",IF(G6=\"Question Mark\",Texte!$B$3,IF(Auswertung!G6=\"Star\",Texte!$B$4,IF(Auswertung!G6=\"Poor Dog\",Texte!$B$5,Texte!$B$6))))","v":"Investitionen einstellen, Sortiment eliminieren, Werbung einstellen"}]
[null,{"$f":"IF(Eingabe!C12=\"\",\"\",Eingabe!C12)","v":"T-Shirt"},null,null,{"$f":"IF(B7=\"\",\"\",Eingabe!F12)","v":15},{"$f":"IF(B7=\"\",\"\",IF(Eingabe!H12>0,Eingabe!I12,Eingabe!J12))","v":5.161290322580645},{"$f":"IF(B7=\"\",\"\",IF(AND(E7>=Eingabe!$G$6,F7>=Eingabe!$G$7),\"Star\",IF(AND(E7>=Eingabe!$G$6,F7<Eingabe!$G$7),\"Question Mark\",IF(AND(E7<Eingabe!$G$6,F7>=Eingabe!$G$7),\"Cash Cow\",\"Poor Dog\"))))","v":"Question Mark"},{"$f":"IF(B7=\"\",\"\",IF(G7=\"Question Mark\",Texte!$B$3,IF(Auswertung!G7=\"Star\",Texte!$B$4,IF(Auswertung!G7=\"Poor Dog\",Texte!$B$5,Texte!$B$6))))","v":"Investitionsvolumen erhöhen, Sortiment ausbauen, Expansionswerbung"}]
[null,{"$f":"IF(Eingabe!C13=\"\",\"\",Eingabe!C13)","v":"Sweatshirt"},null,null,{"$f":"IF(B8=\"\",\"\",Eingabe!F13)","v":6},{"$f":"IF(B8=\"\",\"\",IF(Eingabe!H13>0,Eingabe!I13,Eingabe!J13))","v":4.2682926829268295},{"$f":"IF(B8=\"\",\"\",IF(AND(E8>=Eingabe!$G$6,F8>=Eingabe!$G$7),\"Star\",IF(AND(E8>=Eingabe!$G$6,F8<Eingabe!$G$7),\"Question Mark\",IF(AND(E8<Eingabe!$G$6,F8>=Eingabe!$G$7),\"Cash Cow\",\"Poor Dog\"))))","v":"Poor Dog"},{"$f":"IF(B8=\"\",\"\",IF(G8=\"Question Mark\",Texte!$B$3,IF(Auswertung!G8=\"Star\",Texte!$B$4,IF(Auswertung!G8=\"Poor Dog\",Texte!$B$5,Texte!$B$6))))","v":"Investitionen einstellen, Sortiment eliminieren, Werbung einstellen"}]
[null,{"$f":"IF(Eingabe!C14=\"\",\"\",Eingabe!C14)","v":"Partykleid"},null,null,{"$f":"IF(B9=\"\",\"\",Eingabe!F14)","v":14},{"$f":"IF(B9=\"\",\"\",IF(Eingabe!H14>0,Eingabe!I14,Eingabe!J14))","v":7.6543209876543212},{"$f":"IF(B9=\"\",\"\",IF(AND(E9>=Eingabe!$G$6,F9>=Eingabe!$G$7),\"Star\",IF(AND(E9>=Eingabe!$G$6,F9<Eingabe!$G$7),\"Question Mark\",IF(AND(E9<Eingabe!$G$6,F9>=Eingabe!$G$7),\"Cash Cow\",\"Poor Dog\"))))","v":"Question Mark"},{"$f":"IF(B9=\"\",\"\",IF(G9=\"Question Mark\",Texte!$B$3,IF(Auswertung!G9=\"Star\",Texte!$B$4,IF(Auswertung!G9=\"Poor Dog\",Texte!$B$5,Texte!$B$6))))","v":"Investitionsvolumen erhöhen, Sortiment ausbauen, Expansionswerbung"}]
[null,{"$f":"IF(Eingabe!C15=\"\",\"\",Eingabe!C15)","v":"Badehose"},null,null,{"$f":"IF(B10=\"\",\"\",Eingabe!F15)","v":2},{"$f":"IF(B10=\"\",\"\",IF(Eingabe!H15>0,Eingabe!I15,Eingabe!J15))","v":11.176470588235293},{"$f":"IF(B10=\"\",\"\",IF(AND(E10>=Eingabe!$G$6,F10>=Eingabe!$G$7),\"Star\",IF(AND(E10>=Eingabe!$G$6,F10<Eingabe!$G$7),\"Question Mark\",IF(AND(E10<Eingabe!$G$6,F10>=Eingabe!$G$7),\"Cash Cow\",\"Poor Dog\"))))","v":"Cash Cow"},{"$f":"IF(B10=\"\",\"\",IF(G10=\"Question Mark\",Texte!$B$3,IF(Auswertung!G10=\"Star\",Texte!$B$4,IF(Auswertung!G10=\"Poor Dog\",Texte!$B$5,Texte!$B$6))))","v":"Investionsvolumen senken, Sortiment halten, Erhaltungswerbung"}]
[null,{"$f":"IF(Eingabe!C16=\"\",\"\",Eingabe!C16)","v":"Bikini"},null,null,{"$f":"IF(B11=\"\",\"\",Eingabe!F16)","v":14},{"$f":"IF(B11=\"\",\"\",IF(Eingabe!H16>0,Eingabe!I16,Eingabe!J16))","v":19.35483870967742},{"$f":"IF(B11=\"\",\"\",IF(AND(E11>=Eingabe!$G$6,F11>=Eingabe!$G$7),\"Star\",IF(AND(E11>=Eingabe!$G$6,F11<Eingabe!$G$7),\"Question Mark\",IF(AND(E11<Eingabe!$G$6,F11>=Eingabe!$G$7),\"Cash Cow\",\"Poor Dog\"))))","v":"Star"},{"$f":"IF(B11=\"\",\"\",IF(G11=\"Question Mark\",Texte!$B$3,IF(Auswertung!G11=\"Star\",Texte!$B$4,IF(Auswertung!G11=\"Poor Dog\",Texte!$B$5,Texte!$B$6))))","v":"Investitionsvolumen beibehalten, Stabilisierungsswerbung, Sortiment halten"}]
[null,{"$f":"IF(Eingabe!C17=\"\",\"\",Eingabe!C17)","v":"Trainingsanzug"},null,null,{"$f":"IF(B12=\"\",\"\",Eingabe!F17)","v":5},{"$f":"IF(B12=\"\",\"\",IF(Eingabe!H17>0,Eingabe!I17,Eingabe!J17))","v":15.32258064516129},{"$f":"IF(B12=\"\",\"\",IF(AND(E12>=Eingabe!$G$6,F12>=Eingabe!$G$7),\"Star\",IF(AND(E12>=Eingabe!$G$6,F12<Eingabe!$G$7),\"Question Mark\",IF(AND(E12<Eingabe!$G$6,F12>=Eingabe!$G$7),\"Cash Cow\",\"Poor Dog\"))))","v":"Cash Cow"},{"$f":"IF(B12=\"\",\"\",IF(G12=\"Question Mark\",Texte!$B$3,IF(Auswertung!G12=\"Star\",Texte!$B$4,IF(Auswertung!G12=\"Poor Dog\",Texte!$B$5,Texte!$B$6))))","v":"Investionsvolumen senken, Sortiment halten, Erhaltungswerbung"}]
[null,{"$f":"IF(Eingabe!C18=\"\",\"\",Eingabe!C18)","v":"Polohemd"},null,null,{"$f":"IF(B13=\"\",\"\",Eingabe!F18)","v":2},{"$f":"IF(B13=\"\",\"\",IF(Eingabe!H18>0,Eingabe!I18,Eingabe!J18))","v":18.03921568627451},{"$f":"IF(B13=\"\",\"\",IF(AND(E13>=Eingabe!$G$6,F13>=Eingabe!$G$7),\"Star\",IF(AND(E13>=Eingabe!$G$6,F13<Eingabe!$G$7),\"Question Mark\",IF(AND(E13<Eingabe!$G$6,F13>=Eingabe!$G$7),\"Cash Cow\",\"Poor Dog\"))))","v":"Cash Cow"},{"$f":"IF(B13=\"\",\"\",IF(G13=\"Question Mark\",Texte!$B$3,IF(Auswertung!G13=\"Star\",Texte!$B$4,IF(Auswertung!G13=\"Poor Dog\",Texte!$B$5,Texte!$B$6))))","v":"Investionsvolumen senken, Sortiment halten, Erhaltungswerbung"}]
[null,{"$f":"IF(Eingabe!C19=\"\",\"\",Eingabe!C19)","v":"Trekkingshirt"},null,null,{"$f":"IF(B14=\"\",\"\",Eingabe!F19)","v":14},{"$f":"IF(B14=\"\",\"\",IF(Eingabe!H19>0,Eingabe!I19,Eingabe!J19))","v":12.037037037037036},{"$f":"IF(B14=\"\",\"\",IF(AND(E14>=Eingabe!$G$6,F14>=Eingabe!$G$7),\"Star\",IF(AND(E14>=Eingabe!$G$6,F14<Eingabe!$G$7),\"Question Mark\",IF(AND(E14<Eingabe!$G$6,F14>=Eingabe!$G$7),\"Cash Cow\",\"Poor Dog\"))))","v":"Star"},{"$f":"IF(B14=\"\",\"\",IF(G14=\"Question Mark\",Texte!$B$3,IF(Auswertung!G14=\"Star\",Texte!$B$4,IF(Auswertung!G14=\"Poor Dog\",Texte!$B$5,Texte!$B$6))))","v":"Investitionsvolumen beibehalten, Stabilisierungsswerbung, Sortiment halten"}]

{"sheet":"Grafik","index":2,"n_rows":18,"n_cols":17,"rows_kept":18,"cut":false,"hidden":false,"merged":[[8,15,8,16],[9,15,9,16],[14,15,14,16]]}
[]
[]
[]
[]
[]
[]
[]
[]
[null,null,null,null,null,null,null,null,null,null,null,null,null,null,null,"Grenzwerte"]
[null,null,null,null,null,null,null,null,null,null,null,null,null,null,null,"Marktanteil"]
[null,null,null,null,null,null,null,null,null,null,null,null,null,null,null,"X-Werte","Y-Werte"]
[null,null,null,null,null,null,null,null,null,null,null,null,null,null,null,{"$f":"Eingabe!G7","v":10},-10]
[null,null,null,null,null,null,null,null,null,null,null,null,null,null,null,{"$f":"P12","v":10},25]
[]
[null,null,null,null,null,null,null,null,null,null,null,null,null,null,null,"Marktwachstum"]
[null,null,null,null,null,null,null,null,null,null,null,null,null,null,null,"X-Werte","Y-Werte"]
[null,null,null,null,null,null,null,null,null,null,null,null,null,null,null,0,{"$f":"Eingabe!G6","v":10}]
[null,null,null,null,null,null,null,null,null,null,null,null,null,null,null,25,{"$f":"Eingabe!G6","v":10}]

{"sheet":"Texte","index":3,"n_rows":6,"n_cols":2,"rows_kept":6,"cut":false,"hidden":false,"merged":[[2,1,2,6],[3,1,3,6],[4,1,4,6],[5,1,5,6]]}
[]
[null,"Strategische Empfehlungen"]
[null,"Investitionsvolumen erhöhen, Sortiment ausbauen, Expansionswerbung"]
[null,"Investitionsvolumen beibehalten, Stabilisierungsswerbung, Sortiment halten"]
[null,"Investitionen einstellen, Sortiment eliminieren, Werbung einstellen"]
[null,"Investionsvolumen senken, Sortiment halten, Erhaltungswerbung"]